fUSD/lending_fUSD_20241219
["ID","MTS","AMOUNT","RATE_DAILY","PERIOD"]
[345962942,1734569443470,-500.0,0.00023812,4]
[345962943,1734569443480,-500.0,0.00023812,4]
[345962944,1734569443490,-500.0,0.00023812,4]
[345962945,1734569443499,-500.0,0.00023812,4]
[345962946,1734569443509,-500.0,0.00023812,4]
[345962947,1734569443518,-500.0,0.00023812,4]
[345962948,1734569443528,-500.0,0.00023812,4]
[345962949,1734569443537,-185.16517172,0.00023812,4]
[345962950,1734569443547,-190.98435655,0.00023812,4]
[345962951,1734569443557,-500.0,0.00023812,4]
[345962952,1734569443566,-500.0,0.00023812,4]
[345962953,1734569443576,-500.0,0.00023812,4]
[345962954,1734569443589,-500.0,0.00023812,4]
[345962955,1734569443599,-170.75,0.00023812,4]
[345962956,1734569443608,-500.0,0.00023812,4]
[345962957,1734569443619,-500.0,0.00023812,4]
[345962958,1734569443628,-500.0,0.00023812,4]
[345962959,1734569443638,-500.0,0.00023812,4]
[345962961,1734569443656,-500.0,0.00023812,4]
[345962964,1734569443665,-279.02705847,0.00023812,4]
[345962967,1734569443674,-500.0,0.00023812,4]
[345962969,1734569443683,-500.0,0.00023812,4]
[345962973,1734569443695,-500.0,0.00023812,4]
[345962976,1734569443704,-490.13543066,0.00023812,4]
[345962978,1734569443713,-500.0,0.00023812,4]
[345962981,1734569443723,-500.0,0.00023812,4]
[345962982,1734569443732,-685.61,0.00023812,4]
[345962985,1734569443741,-737.68,0.00023812,4]
[345962987,1734569443751,-500.0,0.00023812,4]
[345962988,1734569443760,-199.97454028,0.00023812,4]
[345962991,1734569443769,-500.0,0.00023812,4]
[345962992,1734569443779,-500.0,0.00023812,4]
[345962994,1734569443789,-500.0,0.00023812,4]
[345962996,1734569443798,-582.95,0.00023812,4]
[345962999,1734569443808,-500.0,0.00023812,4]
[345963001,1734569443818,-500.0,0.00023812,4]
[345963002,1734569443826,-500.0,0.00023812,4]
[345963004,1734569443836,-500.0,0.00023812,4]
[345963006,1734569443845,-962.72,0.00023812,4]
[345963008,1734569443854,-519.6,0.00023812,4]
[345963010,1734569443863,-636.04688351,0.00023812,4]
[345963012,1734569443872,-500.0,0.00023812,4]
[345963014,1734569443882,-500.0,0.00023812,4]
[345963016,1734569443892,-500.0,0.00023812,4]
[345963018,1734569443903,-500.0,0.00023812,4]
[345963020,1734569443912,-500.0,0.00023812,4]
[345963022,1734569443922,-500.0,0.00023812,4]
[345963024,1734569443931,-500.0,0.00023812,4]
[345963026,1734569443940,-345.66485822,0.00023812,4]
[345963028,1734569443950,-500.0,0.00023812,4]
[345963030,1734569443959,-500.0,0.00023812,4]
[345963032,1734569443969,-913.55,0.00023812,4]
[345963034,1734569443978,-750.8,0.00023812,4]
[345963036,1734569443987,-500.0,0.00023812,4]
[345963038,1734569443996,-500.0,0.00023812,4]
[345963040,1734569444006,-2000.0,0.00023812,2]
[345963042,1734569444015,-500.0,0.00023812,4]
[345963044,1734569444025,-500.0,0.00023812,4]
[345963046,1734569444034,-200.0,0.00023812,2]
[345963048,1734569444044,-500.0,0.00023812,4]
[345963050,1734569444053,-500.0,0.00023812,4]
[345963052,1734569444062,-500.0,0.00023812,4]
[345963054,1734569444071,-1211.06,0.00023812,4]
[345963056,1734569444081,-500.0,0.00023812,4]
[345963058,1734569444090,-500.0,0.00023812,4]
[345963060,1734569444100,-53.02676477,0.00023812,4]
[345963063,1734569444116,-446.97323523,0.00023812,4]
[345963065,1734569444125,-167.76,0.00023812,4]
[345963067,1734569444134,-500.0,0.00023812,4]
[345963069,1734569444147,-703.27,0.00023812,4]
[345963071,1734569444156,-500.0,0.00023812,4]
[345963073,1734569444165,-500.0,0.00023812,4]
[345963075,1734569444177,-606.52,0.00023812,4]
[345963077,1734569444187,-1393.07,0.00023812,4]
[345963079,1734569444196,-500.0,0.00023812,4]
[345963081,1734569444205,-500.0,0.00023812,4]
[345963083,1734569444215,-500.0,0.00023812,4]
[345963085,1734569444224,-500.0,0.00023812,4]
[345963086,1734569444234,-500.0,0.00023812,4]
[345963088,1734569444243,-500.0,0.00023812,4]
[345963090,1734569444252,-500.0,0.00023812,4]
[345963092,1734569444262,-500.0,0.00023812,4]
[345963094,1734569444272,-857.31,0.00023812,4]
[345963096,1734569444281,-500.0,0.00023812,4]
[345963098,1734569444291,-500.0,0.00023812,4]
[345963100,1734569444300,-667.88,0.00023812,4]
[345963102,1734569444309,-500.0,0.00023812,4]
[345963104,1734569444319,-527.63,0.00023812,4]
[345963105,1734569444328,-500.0,0.00023812,4]
[345963106,1734569444338,-1000.0,0.00023812,5]
[345963107,1734569444347,-496.44449699,0.00023812,4]
[345963108,1734569444359,-1040.42550301,0.00023812,4]
[345963109,1734569444369,-500.0,0.00023812,4]
[345963110,1734569444378,-5778.04,0.00023812,4]
[345963111,1734569444388,-500.0,0.00023812,4]
[345963112,1734569444402,-534.73,0.00023812,4]
[345963113,1734569444412,-500.0,0.00023812,4]
[345963114,1734569444421,-587.36,0.00023812,4]
[345963115,1734569444431,-500.0,0.00023812,4]
[345963116,1734569444440,-859.12,0.00023812,4]
[345963117,1734569444449,-697.64,0.00023812,4]
[345963118,1734569444459,-1592.5,0.00023812,4]
[345963119,1734569444468,-500.0,0.00023812,4]
[345963120,1734569444477,-500.0,0.00023812,4]
[345963121,1734569444488,-500.0,0.00023812,2]
[345963122,1734569444499,-500.0,0.00023812,4]
[345963123,1734569444508,-777.69,0.00023812,4]
[345963124,1734569444518,-500.0,0.00023812,4]
[345963125,1734569444528,-500.0,0.00023812,4]
[345963126,1734569444538,-875.65,0.00023812,4]
[345963127,1734569444549,-500.0,0.00023812,4]
[345963128,1734569444559,-500.0,0.00023812,4]
[345963129,1734569444570,-1000.0,0.00023812,4]
[345963130,1734569444581,-500.0,0.00023812,4]
[345963131,1734569444596,-581.08,0.00023812,4]
[345963132,1734569444605,-500.0,0.00023812,4]
[345963133,1734569444614,-1327.37,0.00023812,4]
[345963134,1734569444626,-500.0,0.00023812,4]
[345963135,1734569444635,-2722.65,0.00023812,4]
[345963136,1734569444649,-500.0,0.00023812,4]
[345963137,1734569444659,-844.69,0.00023812,4]
[345963138,1734569444674,-1202.09,0.00023812,4]
[345963139,1734569444684,-693.26,0.00023812,4]
[345963140,1734569444694,-1304.34,0.00023812,4]
[345963141,1734569444703,-7972.4626,0.00023813,2]
[345963142,1734569444714,-234.5413632,0.00023813,4]
[345963143,1734569444723,-500.0,0.00023813,4]
[345963144,1734569444733,-500.0,0.00023813,4]
[345963145,1734569444744,-500.0,0.00023813,4]
[345963146,1734569444755,-725.04,0.00023813,4]
[345963147,1734569444764,-500.0,0.00023813,4]
[345963148,1734569444774,-500.0,0.00023813,4]
[345963149,1734569444783,-502.1,0.00023813,4]
[345963150,1734569444793,-824.79,0.00023813,4]
[345963151,1734569444802,-500.0,0.00023813,4]
[345963152,1734569444812,-161.27895692,0.00023873,2]
[345963153,1734569444821,-481.35508119,0.00023873,2]
[345963154,1734569444830,-57546.76508937,0.000239,2]
[345963155,1734569444839,-156.89982613,0.00023906,2]
[345963156,1734569444848,-154.059082,0.00023963,2]
[345963157,1734569444857,-567.66965286,0.00023986,2]
[345963158,1734569444867,-151640.35271209,0.00024,2]
[345963159,1734569445137,-1750.35,0.00023811,4]
[345963160,1734569445158,-416.78999983,0.00023811,4]
[345963161,1734569445172,-595.49999625,0.00023811,4]
[345963162,1734569445185,-94.64000392,0.00023811,4]
[345963163,1734569445195,-678.24,0.00023811,4]
[345963164,1734569445205,-153.61999534,0.00024,2]
[345963165,1734569445217,-360.000017,0.00024,2]
[345963166,1734569445230,-507.24000004,0.00024,2]
[345963167,1734569445248,-1947.01661006,0.00024,2]
[345963168,1734569445261,-2033.92794883,0.00024,2]
[345963169,1734569445279,-27634.07646912,0.00024,2]
[345963170,1734569445300,-451.88977681,0.00024,2]
[345963174,1734569446177,-500.0,0.00023812,4]
[345963175,1734569446187,-1524.8765447,0.00024,2]
[345963176,1734569446232,-437.72254664,0.00024,2]
[345963177,1734569446329,-2494.46051658,0.00024,2]
[345963178,1734569446340,-4840.72988478,0.00024,2]
[345963179,1734569446351,-5043.5,0.00024,2]
[345963180,1734569446362,-595.0595,0.00024,2]
[345963181,1734569446457,-4196.6989,0.00024,2]
[345963182,1734569446468,-3196.23714841,0.00024,2]
[345963183,1734569446480,-632.29255692,0.00024,2]
[345963184,1734569446491,-622.15636844,0.00024,2]
[345963185,1734569446514,-1502.2233436,0.00024,2]
[345963186,1734569446527,-1464.52468086,0.00024,2]
[345963187,1734569446538,-281.0,0.00024,2]
[345963188,1734570278877,-848.22,0.00024,120]
[345963190,1734570290286,161.95,0.00010137,2]
[345963191,1734570393014,5955.0,0.00024,120]
[345963192,1734570396254,450.0,0.00013,2]
[345963193,1734570442264,5000.87352386,0.00024,120]
[345963194,1734570530778,1013.95,0.00024,120]
[345963195,1734570550143,-153.0,0.00017613,2]
[345963196,1734570550164,-153.0,0.00017613,2]
[345963197,1734570550186,-144.91090774,0.00017613,2]
[345963199,1734570605043,10849.97399613,0.00024,120]
[345963202,1734570631492,-8.08909226,0.00017613,2]
[345963203,1734570631502,-153.0,0.00017613,2]
[345963204,1734570631512,-153.0,0.00017613,2]
[345963205,1734570631522,-368.7024512,0.00020205,2]
[345963206,1734570631638,-29.0275488,0.00020205,2]
[345963207,1734570631648,-757.42,0.00022041,2]
[345963208,1734570631659,-300.0,0.0002207,2]
[345963209,1734570631669,-227.9,0.00022071,2]
[345963210,1734570631680,-150.99,0.00022071,2]
[345963211,1734570631690,-279.37,0.00022071,2]
[345963212,1734570631700,-7928.7,0.00022071,2]
[345963213,1734570631710,-23900.0,0.00022091,2]
[345963214,1734570631720,-250.0,0.00022111,2]
[345963215,1734570631729,-250.0,0.00022116,2]
[345963216,1734570631739,-2572.18,0.00022136,2]
[345963217,1734570631749,-163.19,0.00022138,2]
[345963218,1734570631759,-200.0,0.0002223,2]
[345963219,1734570631769,-739.32,0.00022236,2]
[345963220,1734570631779,-1000.0,0.00022247,2]
[345963221,1734570631788,-9999.99,0.00022247,2]
[345963222,1734570631798,-562.49,0.00022258,2]
[345963223,1734570631808,-250.0,0.00022268,2]
[345963224,1734570631818,-186.33,0.00022269,2]
[345963225,1734570631827,-163.59,0.00022286,2]
[345963226,1734570631843,-188.19,0.00022287,2]
[345963227,1734570631854,-2751.0,0.00022298,2]
[345963228,1734570631863,-250.0,0.00022423,2]
[345963229,1734570631873,-397.73,0.00022469,2]
[345963230,1734570631883,-2262.0,0.000226,2]
[345963231,1734570631892,-207.27,0.00022866,2]
[345963232,1734570631901,-207.27,0.00022872,2]
[345963233,1734570631910,-207.27,0.00022878,2]
[345963234,1734570631920,-207.27,0.00022884,2]
[345963235,1734570631930,-227.9,0.00022887,2]
[345963236,1734570631939,-207.27,0.0002289,2]
[345963237,1734570631950,-207.27,0.00022896,2]
[345963238,1734570631966,-207.27,0.00022902,2]
[345963239,1734570631975,-207.27,0.00022908,2]
[345963241,1734570631984,-207.27,0.00022914,2]
[345963242,1734570631994,-207.27,0.0002292,2]
[345963243,1734570632003,-207.27,0.00022927,2]
[345963244,1734570632012,-207.27,0.00022933,2]
[345963245,1734570632022,-167.46,0.00022936,2]
[345963246,1734570632033,-207.27,0.00022939,2]
[345963247,1734570632042,-207.27,0.00022945,2]
[345963249,1734570632052,-177.24,0.00022945,2]
[345963252,1734570632061,-207.27,0.00022951,2]
[345963253,1734570632071,-1463.26,0.00022956,2]
[345963256,1734570632084,-207.27,0.00022957,2]
[345963257,1734570632093,-207.27,0.00022963,2]
[345963259,1734570632102,-207.27,0.00022969,2]
[345963262,1734570632112,-181.96744863,0.00022974,2]
[345963264,1734570632121,-207.27,0.00022975,2]
[345963266,1734570632130,-150.0,0.00022976,2]
[345963268,1734570632140,-207.27,0.00022981,2]
[345963269,1734570632150,-400.0,0.00023,2]
[345963272,1734570632161,-500.0,0.00023,30]
[345963273,1734570632171,-500.0,0.00023,30]
[345963276,1734570632180,-500.0,0.00023,30]
[345963277,1734570632189,-500.0,0.00023,30]
[345963279,1734570632199,-500.0,0.00023,30]
[345963282,1734570632208,-500.0,0.00023,30]
[345963283,1734570632217,-500.0,0.00023,30]
[345963284,1734570632227,-500.0,0.00023,30]
[345963285,1734570632236,-500.0,0.00023,30]
[345963286,1734570632246,-606.33788537,0.00023,30]
[345963287,1734570632259,-500.0,0.00023,30]
[345963288,1734570632269,-500.0,0.00023,30]
[345963289,1734570632279,-500.0,0.00023,30]
[345963290,1734570632288,-500.0,0.00023,30]
[345963291,1734570632297,-500.0,0.00023,30]
[345963292,1734570632307,-503.22,0.00023044,2]
[345963293,1734570632317,-4996.0,0.00023286,2]
[345963294,1734570632326,-150.0,0.00023383,2]
[345963295,1734570632337,-411.41594841,0.00023419,2]
[345963296,1734570632346,-150.0,0.00023489,2]
[345963297,1734570632356,-150.0,0.00023539,2]
[345963298,1734570632365,-508.75,0.00023543,2]
[345963299,1734570632375,-1675.19648,0.0002357,2]
[345963300,1734570632385,-220.0,0.00023597,2]
[345963301,1734570632395,-164.94,0.00023647,2]
[345963302,1734570632405,-411.41594841,0.00023675,2]
[345963303,1734570632415,-227.9,0.00023704,2]
[345963304,1734570632425,-2112.22905421,0.0002371,2]
[345963305,1734570632435,-310.6963,0.0002371,2]
[345963306,1734570632444,-1000.0,0.0002371,2]
[345963307,1734570632454,-1000.0,0.00023711,2]
[345963308,1734570632464,-12897.6075,0.00023711,2]
[345963309,1734570632474,-13065.2249,0.00023711,2]
[345963310,1734570632484,-150.0,0.00023722,2]
[345963311,1734570632493,-3845.6,0.00023722,2]
[345963312,1734570632503,-1773.272,0.00023722,2]
[345963313,1734570632513,-372.376,0.0002375,2]
[345963314,1734570632523,-150.0,0.00023768,2]
[345963315,1734570632533,-300.0,0.000238,4]
[345963316,1734570632542,-300.0,0.000238,5]
[345963317,1734570632553,-300.0,0.000238,6]
[345963318,1734570632562,-235.0,0.000238,7]
[345963319,1734570632572,-235.0,0.000238,8]
[345963320,1734570632584,-241.0,0.000238,4]
[345963321,1734570632593,-500.0,0.00023809,4]
[345963322,1734570632602,-539.55,0.00023809,4]
[345963323,1734570632612,-500.0,0.00023809,4]
[345963324,1734570632622,-500.0,0.00023809,4]
[345963325,1734570632632,-500.0,0.00023809,4]
[345963326,1734570632641,-500.0,0.00023809,4]
[345963327,1734570632652,-909.25,0.00023809,4]
[345963328,1734570632662,-1666.69,0.00023809,4]
[345963329,1734570632671,-500.0,0.00023809,4]
[345963330,1734570632681,-856.43,0.00023809,4]
[345963331,1734570632691,-1302.22,0.00023809,4]
[345963332,1734570632701,-500.0,0.00023809,4]
[345963333,1734570632711,-1121.92,0.00023809,4]
[345963334,1734570632721,-500.0,0.00023809,4]
[345963335,1734570632731,-787.29,0.00023809,4]
[345963336,1734570632741,-1208.07,0.00023809,4]
[345963337,1734570632751,-806.82,0.00023809,4]
[345963338,1734570632761,-843.42,0.00023809,4]
[345963339,1734570632770,-3371.43,0.00023809,4]
[345963340,1734570632780,-500.0,0.00023809,4]
[345963341,1734570632790,-500.0,0.00023809,4]
[345963342,1734570632799,-855.98,0.00023809,4]
[345963343,1734570632809,-500.0,0.00023809,4]
[345963344,1734570632819,-550.23,0.00023809,4]
[345963345,1734570632829,-575.7,0.00023809,4]
[345963346,1734570632841,-289.08722226,0.00023809,2]
[345963347,1734570632850,-628.39,0.0002381,4]
[345963348,1734570632860,-500.0,0.0002381,4]
[345963349,1734570632870,-500.0,0.0002381,4]
[345963350,1734570632880,-500.0,0.0002381,4]
[345963351,1734570632890,-644.94,0.0002381,4]
[345963352,1734570632900,-500.0,0.0002381,4]
[345963353,1734570632910,-500.0,0.0002381,4]
[345963354,1734570632919,-500.0,0.0002381,4]
[345963355,1734570632929,-500.0,0.0002381,4]
[345963356,1734570632939,-380.67641698,0.0002381,4]
[345963357,1734570632948,-784.2,0.0002381,4]
[345963358,1734570632963,-754.83,0.0002381,4]
[345963359,1734570632973,-1659.09,0.0002381,4]
[345963360,1734570632983,-500.0,0.0002381,4]
[345963361,1734570632994,-500.0,0.0002381,4]
[345963362,1734570633004,-500.0,0.0002381,4]
[345963363,1734570633013,-500.0,0.0002381,4]
[345963364,1734570633024,-500.0,0.0002381,4]
[345963365,1734570633034,-674.56,0.0002381,4]
[345963366,1734570633045,-460.06054996,0.0002381,4]
[345963367,1734570633055,-500.0,0.0002381,4]
[345963368,1734570633065,-500.0,0.0002381,4]
[345963369,1734570633075,-650.52,0.0002381,4]
[345963370,1734570633089,-611.94,0.0002381,4]
[345963371,1734570633099,-500.0,0.0002381,4]
[345963372,1734570633110,-529.64,0.0002381,4]
[345963373,1734570633122,-454.97514176,0.0002381,4]
[345963374,1734570633132,-500.0,0.0002381,4]
[345963375,1734570633381,-787.93,0.0002381,4]
[345963376,1734570633390,-500.0,0.0002381,4]
[345963377,1734570633401,-500.0,0.0002381,4]
[345963378,1734570633411,-500.0,0.0002381,4]
[345963379,1734570633421,-845.09,0.0002381,4]
[345963380,1734570633431,-500.0,0.0002381,4]
[345963381,1734570633441,-500.0,0.0002381,4]
[345963382,1734570633451,-500.0,0.0002381,4]
[345963383,1734570633461,-560.79,0.0002381,4]
[345963384,1734570633471,-1163.9,0.0002381,4]
[345963385,1734570633481,-500.0,0.0002381,4]
[345963386,1734570633491,-1663.45,0.0002381,4]
[345963387,1734570633501,-500.0,0.0002381,4]
[345963388,1734570633511,-500.0,0.0002381,4]
[345963389,1734570633521,-500.0,0.0002381,4]
[345963390,1734570633531,-500.0,0.0002381,4]
[345963391,1734570633545,-500.0,0.0002381,4]
[345963392,1734570633555,-500.0,0.0002381,4]
[345963393,1734570633565,-500.0,0.0002381,4]
[345963394,1734570633575,-522.74,0.0002381,4]
[345963395,1734570633589,-500.0,0.0002381,4]
[345963396,1734570633599,-500.0,0.0002381,4]
[345963397,1734570633609,-500.0,0.0002381,4]
[345963398,1734570633619,-500.0,0.0002381,4]
[345963399,1734570633629,-500.0,0.0002381,4]
[345963400,1734570633639,-500.0,0.0002381,4]
[345963401,1734570633649,-500.0,0.0002381,4]
[345963402,1734570633659,-500.0,0.0002381,4]
[345963403,1734570633670,-500.0,0.0002381,4]
[345963404,1734570633679,-769.65,0.0002381,4]
[345963405,1734570633689,-500.0,0.0002381,4]
[345963406,1734570633700,-500.0,0.0002381,4]
[345963407,1734570633711,-657.04,0.0002381,4]
[345963408,1734570633721,-428.83,0.0002381,4]
[345963409,1734570633731,-500.0,0.0002381,4]
[345963410,1734570633741,-601.92,0.0002381,2]
[345963411,1734570633751,-706.94,0.0002381,4]
[345963412,1734570633761,-558.66,0.0002381,4]
[345963413,1734570633771,-176.203526,0.0002381,4]
[345963414,1734570633781,-2769.617773,0.0002381,4]
[345963415,1734570633791,-4155.784988,0.0002381,4]
[345963416,1734570633800,-500.0,0.0002381,4]
[345963417,1734570633811,-500.0,0.0002381,4]
[345963418,1734570633822,-500.0,0.0002381,4]
[345963419,1734570633834,-500.0,0.0002381,4]
[345963420,1734570633844,-500.0,0.0002381,4]
[345963421,1734570633854,-500.0,0.0002381,4]
[345963422,1734570633864,-883.34,0.0002381,4]
[345963423,1734570633874,-922.61,0.0002381,4]
[345963424,1734570633885,-500.0,0.0002381,4]
[345963425,1734570633895,-503.67884713,0.0002381,4]
[345963426,1734570633906,-500.0,0.0002381,4]
[345963427,1734570633916,-500.0,0.0002381,4]
[345963428,1734570633926,-500.0,0.0002381,4]
[345963429,1734570633935,-532.91,0.0002381,4]
[345963430,1734570633945,-500.0,0.0002381,4]
[345963431,1734570633959,-500.0,0.0002381,4]
[345963432,1734570633969,-1087.93,0.0002381,4]
[345963433,1734570633978,-428.92004455,0.0002381,4]
[345963434,1734570633987,-500.0,0.0002381,4]
[345963435,1734570633997,-500.0,0.0002381,4]
[345963436,1734570634005,-500.0,0.0002381,4]
[345963437,1734570634013,-500.0,0.0002381,4]
[345963438,1734570634023,-500.0,0.0002381,4]
[345963439,1734570634034,-1016.22,0.0002381,4]
[345963440,1734570634045,-500.0,0.0002381,4]
[345963441,1734570634055,-500.0,0.0002381,4]
[345963442,1734570634065,-590.02,0.0002381,4]
[345963443,1734570634075,-500.0,0.0002381,4]
[345963444,1734570634090,-719.52,0.0002381,4]
[345963445,1734570634100,-500.0,0.0002381,4]
[345963446,1734570634110,-500.0,0.0002381,4]
[345963447,1734570634120,-875.49,0.0002381,4]
[345963448,1734570634130,-630.12741418,0.0002381,4]
[345963449,1734570634140,-500.0,0.0002381,4]
[345963450,1734570634150,-816.25,0.0002381,4]
[345963451,1734570634159,-542.73687988,0.0002381,4]
[345963452,1734570634169,-500.0,0.0002381,4]
[345963453,1734570634178,-500.0,0.0002381,4]
[345963454,1734570634188,-500.0,0.0002381,4]
[345963455,1734570634198,-500.0,0.0002381,4]
[345963456,1734570634208,-563.20359793,0.0002381,4]
[345963457,1734570634218,-500.0,0.0002381,4]
[345963458,1734570634228,-1312.12,0.0002381,4]
[345963459,1734570634238,-500.0,0.0002381,4]
[345963460,1734570634248,-1160.6,0.0002381,4]
[345963461,1734570634258,-778.29,0.0002381,4]
[345963462,1734570634267,-3954.74,0.0002381,4]
[345963463,1734570634278,-694.8,0.0002381,4]
[345963464,1734570634287,-500.0,0.0002381,4]
[345963465,1734570634297,-1337.34,0.0002381,4]
[345963466,1734570634307,-500.0,0.0002381,4]
[345963467,1734570634317,-500.0,0.0002381,4]
[345963468,1734570634326,-500.0,0.0002381,4]
[345963469,1734570634340,-826.83,0.0002381,4]
[345963470,1734570634350,-500.0,0.0002381,4]
[345963471,1734570634360,-500.0,0.0002381,4]
[345963472,1734570634370,-1335.02,0.0002381,4]
[345963473,1734570634380,-500.0,0.0002381,4]
[345963474,1734570634389,-500.0,0.0002381,4]
[345963475,1734570634399,-500.0,0.0002381,4]
[345963476,1734570634409,-456.16243858,0.0002381,4]
[345963477,1734570634419,-500.0,0.0002381,4]
[345963478,1734570634429,-500.0,0.0002381,4]
[345963479,1734570634438,-1220.64,0.0002381,4]
[345963480,1734570634447,-500.0,0.0002381,4]
[345963481,1734570634457,-500.0,0.0002381,4]
[345963482,1734570634467,-500.0,0.0002381,4]
[345963483,1734570634478,-500.0,0.0002381,4]
[345963484,1734570634488,-531.05,0.0002381,4]
[345963485,1734570634498,-500.0,0.0002381,4]
[345963486,1734570634507,-500.0,0.0002381,4]
[345963487,1734570634517,-500.0,0.0002381,4]
[345963488,1734570634527,-500.0,0.0002381,4]
[345963489,1734570634537,-500.0,0.0002381,4]
[345963490,1734570634547,-500.0,0.0002381,4]
[345963491,1734570634557,-500.0,0.0002381,4]
[345963492,1734570634567,-915.04,0.0002381,4]
[345963493,1734570634576,-682.17,0.0002381,4]
[345963494,1734570634588,-500.0,0.0002381,4]
[345963495,1734570634598,-697.18,0.0002381,4]
[345963496,1734570634608,-500.0,0.0002381,4]
[345963497,1734570634617,-500.0,0.0002381,4]
[345963498,1734570634627,-500.0,0.0002381,4]
[345963499,1734570634636,-1586.26,0.0002381,4]
[345963500,1734570634646,-500.0,0.0002381,4]
[345963501,1734570634656,-500.0,0.0002381,4]
[345963502,1734570634665,-695.68,0.0002381,4]
[345963503,1734570634675,-500.0,0.0002381,4]
[345963504,1734570634684,-500.0,0.0002381,4]
[345963505,1734570634694,-930.88,0.0002381,4]
[345963506,1734570634705,-645.42,0.0002381,4]
[345963507,1734570634715,-500.0,0.0002381,4]
[345963508,1734570634724,-500.0,0.0002381,4]
[345963509,1734570634734,-505.65,0.0002381,4]
[345963510,1734570634743,-500.0,0.0002381,4]
[345963511,1734570634753,-735.97,0.0002381,4]
[345963512,1734570634764,-932.31,0.0002381,4]
[345963513,1734570634773,-1122.17,0.0002381,4]
[345963514,1734570634782,-1000.0,0.0002381,5]
[345963515,1734570634791,-500.0,0.0002381,4]
[345963516,1734570634801,-500.0,0.0002381,4]
[345963517,1734570634811,-647.53,0.0002381,4]
[345963518,1734570634819,-500.0,0.0002381,4]
[345963519,1734570634828,-500.0,0.0002381,4]
[345963520,1734570634839,-344.29,0.0002381,4]
[345963521,1734570634848,-734.34,0.0002381,4]
[345963522,1734570634858,-512.45,0.0002381,4]
[345963523,1734570634867,-667.16,0.0002381,4]
[345963524,1734570634877,-500.0,0.0002381,4]
[345963525,1734570634887,-500.0,0.0002381,4]
[345963526,1734570634896,-562.89,0.0002381,4]
[345963527,1734570634906,-500.0,0.0002381,4]
[345963528,1734570634916,-613.38,0.0002381,4]
[345963529,1734570634926,-1057.95,0.0002381,4]
[345963530,1734570634936,-500.0,0.0002381,4]
[345963531,1734570634945,-899.88,0.0002381,4]
[345963532,1734570634957,-500.0,0.0002381,4]
[345963533,1734570634967,-950.36,0.0002381,4]
[345963534,1734570634977,-500.0,0.0002381,4]
[345963535,1734570634987,-642.83,0.0002381,4]
[345963536,1734570635004,-801.48,0.0002381,4]
[345963537,1734570635021,-500.0,0.0002381,4]
[345963538,1734570635033,-500.0,0.0002381,4]
[345963539,1734570635043,-500.0,0.0002381,4]
[345963540,1734570635053,-500.0,0.0002381,4]
[345963541,1734570635063,-500.0,0.0002381,2]
[345963542,1734570635078,-1774.3,0.0002381,4]